fUST/lending_fUST_20250717
["ID","MTS","AMOUNT","RATE_DAILY","PERIOD"]
[372792104,1752764952816,-460.0,0.00016518,2]
[372792105,1752764952849,-460.0,0.00016518,2]
[372792106,1752764952883,-460.0,0.00016518,2]
[372792107,1752764952916,-460.0,0.00016518,2]
[372792108,1752764952961,-460.0,0.00016518,2]
[372792109,1752764953179,-1969.0,0.00016518,2]
[372792110,1752764953211,-460.0,0.00016518,2]
[372792111,1752764953244,-460.0,0.00016518,2]
[372792112,1752764953278,-487.99,0.00016518,2]
[372792113,1752764953310,-460.0,0.00016518,2]
[372792114,1752764953343,-301.97518595,0.00016518,2]
[372792115,1752764953377,-460.0,0.00016518,2]
[372792116,1752764953410,-342.0696281,0.00016518,2]
[372792117,1752764953545,-117.9303719,0.00016518,2]
[372792118,1752764953579,-460.0,0.00016518,2]
[372792119,1752764953613,-460.0,0.00016518,2]
[372792120,1752764953649,-460.0,0.00016518,2]
[372792121,1752764953853,-460.0,0.00016518,2]
[372792122,1752764953890,-460.0,0.00016518,2]
[372792123,1752764953927,-522.01,0.00016518,2]
[372792124,1752764953966,-460.0,0.00016518,2]
[372792125,1752764954003,-522.01,0.00016518,2]
[372792126,1752764954041,-522.01,0.00016518,2]
[372792127,1752764954076,-460.0,0.00016518,2]
[372792128,1752764954276,789.0,0.00016517,2]
[372792129,1752764954457,-539.79109942,0.00016518,2]
[372792130,1752764954489,-300.52240398,0.00016519,2]
[372792131,1752764954522,-460.0,0.00016519,2]
[372792132,1752764954554,-460.0,0.00016519,2]
[372792133,1752764954588,-460.0,0.00016519,2]
[372792134,1752764954621,-460.0,0.00016519,2]
[372792135,1752764954653,-184.21170141,0.00016519,2]
[372792136,1752764954685,-460.0,0.00016519,2]
[372792137,1752764954719,-460.0,0.0001652,2]
[372792138,1752764954751,-460.0,0.0001652,2]
[372792139,1752764954784,-460.0,0.0001652,2]
[372792140,1752764954819,-130.94959038,0.0001652,2]
[372792141,1752764955017,-329.05040962,0.0001652,2]
[372792142,1752764955054,-460.0,0.0001652,2]
[372792143,1752764955089,-460.0,0.0001652,2]
[372792144,1752764955126,-506.58,0.0001652,2]
[372792145,1752764955159,-460.0,0.0001652,2]
[372792146,1752764955191,-460.0,0.0001652,2]
[372792147,1752764955226,-307.94704902,0.0001652,2]
[372792148,1752764955259,-460.0,0.0001652,2]
[372792149,1752764955292,-500.0,0.0001652,2]
[372792150,1752764955325,-500.0,0.0001652,2]
[372792151,1752764955359,-460.0,0.0001652,2]
[372792152,1752764955743,-460.0,0.0001652,2]
[372792153,1752764955777,-460.0,0.0001652,2]
[372792154,1752764955810,-460.0,0.0001652,2]
[372792155,1752764955845,-460.0,0.0001652,2]
[372792156,1752764955880,-460.0,0.0001652,2]
[372792157,1752764955912,-460.0,0.0001652,2]
[372792158,1752764955948,-460.0,0.0001652,2]
[372792159,1752764955984,-460.0,0.0001652,2]
[372792160,1752764956023,-460.0,0.0001652,2]
[372792161,1752764956059,-460.0,0.0001652,2]
[372792162,1752764956094,-340.0,0.0001652,2]
[372792163,1752764956174,-120.0,0.0001652,2]
[372792164,1752764956211,-522.01,0.0001652,2]
[372792165,1752764956246,-460.0,0.00016521,2]
[372792166,1752764956279,-460.0,0.00016521,2]
[372792167,1752764956316,-460.0,0.00016521,2]
[372792168,1752764956350,-460.05559276,0.00016521,2]
[372792169,1752764956387,-460.0,0.00016521,2]
[372792170,1752764956421,-460.0,0.00016521,2]
[372792171,1752764956455,-460.0,0.00016521,2]
[372792172,1752764956490,-460.0,0.00016521,2]
[372792173,1752764956522,-460.0,0.00016521,2]
[372792174,1752764956925,-460.0,0.00016521,2]
[372792175,1752764956960,-460.0,0.00016521,2]
[372792176,1752764956994,-460.0,0.00016521,2]
[372792177,1752764957028,-460.0,0.00016521,2]
[372792178,1752764957062,-460.0,0.00016521,2]
[372792179,1752764957095,-460.0,0.00016521,2]
[372792180,1752764957129,-460.0,0.00016521,2]
[372792181,1752764957164,-460.0,0.00016521,2]
[372792182,1752764957200,-460.0,0.00016521,2]
[372792183,1752764957237,-460.0,0.00016521,2]
[372792184,1752764957270,-340.0,0.00016521,2]
[372792185,1752764957431,-120.0,0.00016521,2]
[372792186,1752764957465,-460.0,0.00016521,2]
[372792187,1752764957499,-495.25,0.00016521,2]
[372792188,1752764957532,-463.64171369,0.00016521,2]
[372792189,1752764957565,-460.0,0.00016521,2]
[372792190,1752764957600,-460.0,0.00016521,2]
[372792191,1752764957636,-460.0,0.00016521,2]
[372792192,1752764957671,-460.0,0.00016521,2]
[372792193,1752764957704,-460.0,0.00016521,2]
[372792194,1752764957737,-460.0,0.00016521,2]
[372792195,1752764957771,-460.0,0.00016521,2]
[372792196,1752764957805,-19.21860006,0.00016521,2]
[372792197,1752764958153,-460.0,0.00016518,2]
[372792198,1752764958187,-443.7793725,0.00016521,2]
[372792199,1752764958225,-460.0,0.00016521,2]
[372792200,1752764958259,-214.28114757,0.00016521,2]
[372792201,1752764958292,-460.0,0.00016521,2]
[372792202,1752764958328,-2906.64,0.00016521,2]
[372792203,1752764958420,-460.0,0.00016518,2]
[372792204,1752764958454,-460.0,0.00016521,2]
[372792205,1752764958487,-460.0,0.00016521,2]
[372792206,1752764958520,-500.0,0.00016521,2]
[372792207,1752764958553,-500.0,0.00016521,2]
[372792208,1752764958587,-580.0,0.00016521,2]
[372792209,1752764958621,-731.28,0.00016521,2]
[372792210,1752764958655,-460.0,0.00016521,2]
[372792211,1752764958688,-460.0,0.00016521,2]
[372792212,1752764958720,-317.44,0.00016521,2]
[372792213,1752764959228,-142.56,0.00016521,2]
[372792214,1752764959264,-1328.67,0.00016521,2]
[372792215,1752764959298,-2293.05,0.00016521,2]
[372792216,1752764959332,-460.0,0.00016521,2]
[372792217,1752764959502,-2090.37,0.00016521,2]
[372792218,1752764959538,-460.0,0.00016521,2]
[372792219,1752764959574,-522.01,0.00016521,2]
[372792220,1752764959609,-460.0,0.00016521,2]
[372792221,1752764959643,-460.0,0.00016522,2]
[372792222,1752764959677,-309.61378775,0.00016522,2]
[372792223,1752764959709,-460.0,0.00016522,2]
[372792224,1752764959742,-16.0124245,0.00016522,2]
[372792225,1752764959955,-443.9875755,0.00016522,2]
[372792226,1752764959990,-460.0,0.00016522,2]
[372792227,1752764960026,-460.0,0.00016522,2]
[372792228,1752764960061,-460.0,0.00016522,2]
[372792229,1752764960098,-460.0,0.00016522,2]
[372792230,1752764960132,-460.0,0.00016522,2]
[372792231,1752764960169,-460.0,0.00016522,2]
[372792232,1752764960202,-460.0,0.00016522,2]
[372792233,1752764960236,-460.0,0.00016522,2]
[372792234,1752764960274,-460.0,0.00016522,2]
[372792235,1752764960306,-372.024849,0.00016522,2]
[372792236,1752764960371,-87.975151,0.00016522,2]
[372792237,1752764960405,-460.0,0.00016522,2]
[372792238,1752764960440,-460.0,0.00016522,2]
[372792239,1752764960477,-460.0,0.00016522,2]
[372792240,1752764960511,-460.0,0.00016522,2]
[372792241,1752764960545,-460.0,0.00016522,2]
[372792242,1752764960577,-460.0,0.00016522,2]
[372792243,1752764960609,-462.69329832,0.00016522,2]
[372792244,1752764960641,-460.0,0.00016522,2]
[372792245,1752764960673,-330.61426934,0.00016522,2]
[372792246,1752764960707,-460.0,0.00016522,2]
[372792247,1752764960740,-417.43456268,0.00016522,2]
[372792248,1752764961049,-460.0,0.00016521,2]
[372792249,1752764961084,-42.56543732,0.00016522,2]
[372792250,1752764961118,-460.0,0.00016522,2]
[372792251,1752764961155,-460.0,0.00016522,2]
[372792252,1752764961187,-464.05851527,0.00016522,2]
[372792253,1752764961234,-460.0,0.00016522,2]
[372792254,1752764961270,-464.2853752,0.00016522,2]
[372792255,1752764961303,-460.0,0.00016522,2]
[372792256,1752764961340,-460.0,0.00016522,2]
[372792257,1752764961373,-460.0,0.00016522,2]
[372792258,1752764961409,-460.0,0.00016522,2]
[372792259,1752764961443,-238.18134442,0.00016522,2]
[372792260,1752764961828,-221.81865558,0.00016522,2]
[372792261,1752764961862,-460.0,0.00016522,2]
[372792262,1752764961906,-460.0,0.00016522,2]
[372792263,1752764961944,-460.0,0.00016522,2]
[372792264,1752764961980,-460.0,0.00016522,2]
[372792265,1752764962017,-460.0,0.00016522,2]
[372792266,1752764962056,-460.0,0.00016522,2]
[372792267,1752764962090,-460.0,0.00016522,2]
[372792268,1752764962125,-460.0,0.00016522,2]
[372792269,1752764962160,-462.38900024,0.00016522,2]
[372792270,1752764962192,-460.0,0.00016522,2]
[372792271,1752764962497,-460.0,0.00016522,2]
[372792272,1752764962530,-460.0,0.00016522,2]
[372792273,1752764962563,-460.0,0.00016522,2]
[372792274,1752764962596,-460.0,0.00016522,2]
[372792275,1752764962631,-460.0,0.00016522,2]
[372792276,1752764962665,-460.0,0.00016522,2]
[372792277,1752764962699,-460.0,0.00016522,2]
[372792278,1752764962732,-460.0,0.00016522,2]
[372792279,1752764962765,-460.0,0.00016522,2]
[372792280,1752764962797,-460.0,0.00016522,2]
[372792281,1752764962830,-340.0,0.00016522,2]
[372792282,1752764962872,-120.0,0.00016522,2]
[372792283,1752764962908,-460.0,0.00016522,2]
[372792284,1752764962943,-460.0,0.00016522,2]
[372792285,1752764962979,-460.0,0.00016522,2]
[372792286,1752764963013,-460.0,0.00016522,2]
[372792287,1752764963048,-460.0,0.00016522,2]
[372792288,1752764963079,-460.0,0.00016522,2]
[372792289,1752764963111,-460.0,0.00016522,2]
[372792290,1752764963146,-460.0,0.00016522,2]
[372792291,1752764963178,-460.0,0.00016522,2]
[372792292,1752764963210,-460.0,0.00016522,2]
[372792293,1752764963250,-100.0,0.00016522,2]
[372792294,1752764963795,-460.0,0.00016518,2]
[372792295,1752764963838,-360.0,0.00016522,2]
[372792296,1752764963875,-460.0,0.00016522,2]
[372792297,1752764963919,-288.23171116,0.00016522,2]
[372792298,1752764963957,-460.0,0.00016522,2]
[372792299,1752764964006,-460.0,0.00016522,2]
[372792300,1752764964049,-460.0,0.00016522,2]
[372792301,1752764964090,-460.0,0.00016522,2]
[372792302,1752764964130,-460.0,0.00016522,2]
[372792303,1752764964173,-460.0,0.00016522,2]
[372792304,1752764964213,-500.0,0.00016522,2]
[372792305,1752764967392,-460.0,0.00016518,2]
[372792306,1752764967409,-460.0,0.00016518,2]
[372792307,1752764967427,-460.0,0.00016518,2]
[372792308,1752764967450,-460.0,0.00016519,2]
[372792309,1752764967471,-460.0,0.00016519,2]
[372792310,1752764967488,-460.0,0.00016522,2]
[372792311,1752764967516,-40.0,0.00016522,2]
[372792312,1752764967526,-420.0,0.00016522,2]
[372792313,1752764967542,-40.0,0.00016522,2]
[372792314,1752764967551,-320.0,0.00016522,2]
[372792315,1752764967574,-140.0,0.00016522,2]
[372792316,1752764967584,-320.0,0.00016522,2]
[372792317,1752764967601,-140.0,0.00016522,2]
[372792318,1752764967610,-148.23171116,0.00016522,2]
[372792319,1752764967628,-311.76828884,0.00016522,2]
[372792320,1752764967640,-148.23171116,0.00016523,2]
[372792321,1752764967658,-313.30752282,0.00016523,2]
[372792322,1752764967667,-146.69247718,0.00016523,2]
[372792323,1752764967685,-314.97499565,0.00016523,2]
[372792324,1752764967695,-145.02500435,0.00016523,2]
[372792325,1752764967713,-317.44724748,0.00016523,2]
[372792326,1752764967722,-142.55275252,0.00016523,2]
[372792327,1752764967740,-317.44724748,0.00016523,2]
[372792328,1752764967749,-142.55275252,0.00016523,2]
[372792329,1752764967772,-317.44724748,0.00016523,2]
[372792330,1752764967782,-142.55275252,0.00016523,2]
[372792331,1752764967805,-460.0,0.00016522,2]
[372792332,1752764967814,-40.0,0.00016523,2]
[372792333,1752764967832,-317.44724748,0.00016523,2]
[372792334,1752764967841,-26.0893302,0.00016523,2]
[372792335,1752764967958,47093.59873847,0.00016419,2]
[372792336,1752764974802,150.0,0.00016444,2]
[372792337,1752765003113,300.0,0.00016517,2]
[372792338,1752765009319,-460.0,0.00016518,2]
[372792339,1752765009353,-460.0,0.00016518,2]
[372792340,1752765009388,-460.0,0.00016518,2]
[372792341,1752765009452,-290.28139633,0.00016518,2]
[372792342,1752765009488,-460.0,0.00016518,2]
[372792343,1752765009530,-460.0,0.00016518,2]
[372792344,1752765009586,-1290.34,0.00016518,2]
[372792345,1752765009636,-460.0,0.00016518,2]
[372792346,1752765009681,-460.0,0.00016518,2]
[372792347,1752765009836,-460.0,0.00016518,2]
[372792348,1752765009870,-460.0,0.00016518,2]
[372792349,1752765009906,-460.0,0.00016518,2]
[372792350,1752765009942,-504.19979191,0.00016518,2]
[372792351,1752765009982,-1366.78,0.00016518,2]
[372792352,1752765010018,-462.37299387,0.00016518,2]
[372792353,1752765010055,-460.0,0.00016518,2]
[372792354,1752765010092,-460.0,0.00016518,2]
[372792355,1752765010128,-273.29442844,0.00016518,2]
[372792356,1752765010331,-186.70557156,0.00016518,2]
[372792357,1752765010368,-460.0,0.00016518,2]
[372792358,1752765010404,-460.0,0.00016518,2]
[372792359,1752765010441,-460.0,0.00016518,2]
[372792360,1752765010475,-460.0,0.00016518,2]
[372792361,1752765010509,-460.0,0.00016518,2]
[372792362,1752765010542,-543.91185626,0.00016518,2]
[372792363,1752765010576,-460.0,0.00016518,2]
[372792364,1752765010610,-463.62733433,0.00016519,2]
[372792365,1752765010644,-460.0,0.00016519,2]
[372792366,1752765010679,-460.0,0.00016519,2]
[372792367,1752765010951,-461.83310505,0.00016519,2]
[372792368,1752765010991,-460.0,0.00016519,2]
[372792369,1752765011027,-460.0,0.00016519,2]
[372792370,1752765011066,-3110.26,0.0001652,2]
[372792371,1752765011101,-460.0,0.0001652,2]
[372792372,1752765011269,-460.0,0.0001652,2]
[372792373,1752765011306,-1246.01,0.00016521,2]
[372792374,1752765011340,-460.0,0.00016521,2]
[372792375,1752765011373,-460.0,0.00016522,2]
[372792376,1752765011407,-460.0,0.00016522,2]
[372792377,1752765011445,-460.0,0.00016522,2]
[372792378,1752765011480,-460.0,0.00016522,2]
[372792379,1752765011515,-460.0,0.00016522,2]
[372792380,1752765011552,-495.9206698,0.00016523,2]
[372792381,1752765012279,-63.52045443,0.00016518,2]
[372792382,1752765012299,-453.32436087,0.00016518,2]
[372792383,1752765012309,-6.67563913,0.00016518,2]
[372792384,1752765012336,-453.32436087,0.00016518,2]
[372792385,1752765012347,-42.59630893,0.00016518,2]
[372792386,1752765012366,-76.1386604,0.00016518,2]
[372792387,1752765012413,-341.26503067,0.00016518,2]
[372792388,1752765012455,-460.0,0.00016524,2]
[372792389,1752765012489,-460.0,0.00016524,2]
[372792390,1752765012523,-460.0,0.00016524,2]
[372792391,1752765012558,-460.0,0.00016524,2]
[372792392,1752765012627,-460.0,0.00016524,2]
[372792393,1752765012697,-460.0,0.00016524,2]
[372792394,1752765012776,-460.0,0.00016524,2]
[372792395,1752765012847,-460.0,0.00016524,2]
[372792396,1752765012913,-460.0,0.00016524,2]
[372792397,1752765012986,-463.02392968,0.00016524,2]
[372792398,1752765013088,-5000.0,0.000166,2]
[372792399,1752765013908,1244.0323406,0.00016517,2]
[372792400,1752765014097,460.0,0.00016522,2]
[372792401,1752765014188,460.0,0.00016518,2]
[372792402,1752765014448,460.0,0.00016522,2]
[372792403,1752765014992,460.0,0.00016518,2]
[372792404,1752765018855,460.0,0.0001652,2]
[372792405,1752765018945,460.0,0.00016518,2]
[372792406,1752765019641,460.0,0.00016522,2]
[372792407,1752765020595,460.0,0.00016518,2]
[372792408,1752765021117,460.0,0.00016518,2]
[372792409,1752765021560,1222.62,0.00016518,2]
[372792410,1752765022712,460.0,0.00016518,2]
[372792411,1752765023894,460.0,0.00016518,2]
[372792412,1752765024284,464.97307931,0.00016518,2]
[372792413,1752765024365,2008.37458009,0.000166,2]
[372792414,1752765024433,2991.62541991,0.000166,2]
[372792415,1752765025848,460.0,0.00016518,2]
[372792416,1752765029365,460.0,0.00016518,2]
[372792417,1752765029862,162.80052599,0.00016518,2]
[372792418,1752765029959,460.0,0.00016518,2]
[372792419,1752765030623,460.0,0.00016519,2]
[372792420,1752765031585,664.98,0.00016518,2]
[372792423,1752765032354,460.0,0.00016518,2]
[372792462,1752765032820,-1000.0,0.00016695,2]
[372792464,1752765032831,-1711.44997234,0.00016696,2]
[372792466,1752765032840,-500.0,0.00016703,2]
[372792468,1752765032850,-482.90263552,0.00016773,2]
[372792470,1752765032859,-548.06828774,0.00016773,2]
[372792472,1752765032869,-501.57887198,0.00016773,2]
[372792474,1752765032879,-504.91324515,0.00016773,2]
[372792476,1752765032889,-500.0,0.00016773,2]
[372792478,1752765032898,-336.39055262,0.00016773,2]
[372792480,1752765032908,-500.0,0.00016773,2]
[372792482,1752765032918,-500.0,0.00016773,2]
[372792484,1752765032928,-500.0,0.00016773,2]
[372792486,1752765032938,-500.0,0.00016773,2]
[372792488,1752765032952,-150.53306539,0.00016773,2]
[372792491,1752765032961,-300.84,0.00016786,3]
[372792494,1752765032974,-150.42,0.00016786,3]
[372792496,1752765032983,-500.0,0.00016791,2]
[372792500,1752765032994,-500.0,0.00016791,2]
[372792501,1752765033004,-460.0,0.00016792,2]
[372792503,1752765033015,-460.0,0.00016792,2]
[372792505,1752765033025,-460.0,0.00016792,2]
[372792508,1752765033035,-460.0,0.00016792,2]
[372792510,1752765033049,-460.0,0.00016792,2]
[372792512,1752765033060,-460.0,0.00016792,2]
[372792514,1752765033069,-460.0,0.00016792,2]
[372792517,1752765033079,-460.0,0.00016792,2]
[372792519,1752765033089,-460.0,0.00016792,2]
[372792521,1752765033099,-460.0,0.00016792,2]
[372792522,1752765033109,-460.0,0.00016792,2]
[372792523,1752765033119,-460.0,0.00016792,2]
[372792524,1752765033129,-460.0,0.00016792,2]
[372792525,1752765033138,-460.0,0.00016792,2]
[372792526,1752765033149,-573.18,0.00016792,2]
[372792527,1752765033159,-240.3396799,0.00016792,2]
[372792528,1752765033169,-460.0,0.00016792,2]
[372792529,1752765033178,-460.0,0.00016792,2]
[372792530,1752765033188,-460.0,0.00016792,2]
[372792531,1752765033202,-460.0,0.00016792,2]
[372792532,1752765033212,-460.0,0.00016792,2]
[372792533,1752765033222,-466.18940997,0.00016792,2]
[372792534,1752765033233,-460.0,0.00016792,2]
[372792535,1752765033243,-460.0,0.00016792,2]
[372792536,1752765033253,-290.82857454,0.00016792,2]
[372792537,1752765033277,-169.17142546,0.00016792,2]
[372792538,1752765033288,-460.0,0.00016792,2]
[372792539,1752765033298,-460.0,0.00016792,2]
[372792540,1752765033308,-460.0,0.00016792,2]
[372792541,1752765033318,-460.0,0.00016792,2]
[372792542,1752765033327,-460.0,0.00016792,2]
[372792543,1752765033337,-460.0,0.00016792,2]
[372792544,1752765033348,-460.0,0.00016792,2]
[372792545,1752765033357,-460.0,0.00016792,2]
[372792546,1752765033367,-460.0,0.00016792,2]
[372792547,1752765033377,-460.0,0.00016792,2]
[372792548,1752765033387,-43.50025945,0.00016792,2]
[372792549,1752765033400,-416.49974055,0.00016792,2]
[372792550,1752765033412,-460.0,0.00016792,2]
[372792551,1752765033422,-460.0,0.00016792,2]
[372792552,1752765033432,-2082.80025946,0.00016792,2]
[372792557,1752765034072,460.0,0.00016518,2]
[372792558,1752765035265,460.0,0.00016518,2]
[372792559,1752765036251,460.0,0.00016518,2]
[372792592,1752765038862,460.0,0.00016518,2]
[372792595,1752765038877,-500.0,0.00016791,2]
[372792597,1752765038889,-500.0,0.00016791,2]
[372792598,1752765038899,-500.0,0.00016791,2]
[372792600,1752765038910,-500.0,0.00016791,2]
[372792602,1752765038920,-155.21571561,0.00016791,2]
[372792605,1752765038930,-177.31518972,0.00016791,2]
[372792607,1752765038946,-1482.33974054,0.00016792,2]
[372792609,1752765038956,-506.3302443,0.00016792,2]
[372792611,1752765038967,-460.0,0.00016792,2]
[372792613,1752765038979,-460.0,0.00016792,2]
[372792615,1752765038989,-460.0,0.00016792,2]
[372792617,1752765038999,-460.0,0.00016792,2]
[372792618,1752765039008,-460.0,0.00016792,2]
[372792620,1752765039019,-460.0,0.00016792,2]
[372792622,1752765039028,-460.0,0.00016792,2]
[372792625,1752765039039,-460.0,0.00016792,2]
[372792627,1752765039051,-460.0,0.00016792,2]
[372792628,1752765039060,-460.0,0.00016792,2]
[372792631,1752765039070,-460.0,0.00016792,2]
[372792632,1752765039079,-460.0,0.00016792,2]
[372792635,1752765039089,-460.0,0.00016792,2]
[372792637,1752765039098,-494.71,0.00016792,2]
[372792639,1752765039108,-463.41581243,0.00016792,2]
[372792641,1752765039117,-460.0,0.00016792,2]
[372792642,1752765039127,-460.0,0.00016792,2]
[372792644,1752765039138,-460.0,0.00016792,2]
[372792647,1752765039148,-460.0,0.00016792,2]
[372792648,1752765039158,-460.0,0.00016792,2]
[372792650,1752765039169,-460.0,0.00016792,2]
[372792653,1752765039180,-460.0,0.00016792,2]
[372792654,1752765039189,-460.0,0.00016792,2]
[372792656,1752765039204,-460.0,0.00016792,2]
[372792658,1752765039213,-460.0,0.00016792,2]
[372792661,1752765039223,-2523.44,0.00016792,2]
[372792663,1752765039232,-460.0,0.00016792,2]
[372792665,1752765039242,-461.72622431,0.00016792,2]
[372792667,1752765039251,-460.0,0.00016792,2]
[372792668,1752765039262,-460.0,0.00016792,2]
[372792670,1752765039272,-460.0,0.00016792,2]
[372792672,1752765039281,-460.0,0.00016792,2]
[372792675,1752765039291,-460.0,0.00016792,2]
[372792677,1752765039301,-460.0,0.00016792,2]
[372792678,1752765039310,-462.37300514,0.00016792,2]
[372792680,1752765039319,-460.0,0.00016792,2]
[372792683,1752765039329,-1798.7,0.00016792,2]
[372792685,1752765039339,-626.96,0.00016792,2]
[372792686,1752765039348,-460.0,0.00016792,2]
[372792688,1752765039358,-460.0,0.00016792,2]
[372792691,1752765039368,-500.0,0.00016792,2]
[372792693,1752765039378,-460.0,0.00016792,2]
[372792694,1752765039387,-460.0,0.00016792,2]
[372792697,1752765039398,-460.0,0.00016792,2]
[372792698,1752765039408,-462.97220982,0.00016792,2]
[372792701,1752765039418,-460.0,0.00016792,2]
[372792703,1752765039428,-216.621632,0.00016792,2]
[372792705,1752765039438,-460.0,0.00016792,2]
[372792707,1752765039453,-460.0,0.00016792,2]
[372792709,1752765039463,-460.0,0.00016792,2]
[372792711,1752765039473,-460.0,0.00016792,2]
[372792713,1752765039483,-460.0,0.00016792,2]
[372792715,1752765039492,-460.0,0.00016792,2]
[372792716,1752765039502,-402.07132187,0.00016792,2]
[372792718,1752765039511,-460.0,0.00016792,2]
[372792721,1752765039520,-460.0,0.00016792,2]
[372792723,1752765039530,-1969.0,0.00016792,2]
[372792725,1752765039540,-460.0,0.00016792,2]
[372792727,1752765039550,-460.0,0.00016792,2]
[372792729,1752765039559,-487.99,0.00016792,2]
[372792731,1752765039568,-460.0,0.00016792,2]
[372792733,1752765039578,-460.0,0.00016792,2]
[372792735,1752765039588,-464.70062463,0.00016792,2]
[372792737,1752765039599,-460.0,0.00016792,2]
[372792739,1752765039607,-460.0,0.00016792,2]
[372792741,1752765039617,-460.0,0.00016792,2]
[372792743,1752765039626,-460.0,0.00016792,2]
[372792745,1752765039636,-460.0,0.00016792,2]
[372792747,1752765039645,-460.0,0.00016792,2]
[372792749,1752765039655,-460.0,0.00016792,2]
[372792751,1752765039665,-460.0,0.00016792,2]
[372792753,1752765039675,-460.0,0.00016792,2]
[372792755,1752765039684,-460.0,0.00016792,2]
[372792757,1752765039696,-460.0,0.00016792,2]
[372792759,1752765039706,-460.0,0.00016792,2]
[372792761,1752765039716,-460.0,0.00016792,2]
[372792763,1752765039726,-460.0,0.00016792,2]
[372792765,1752765039736,-460.0,0.00016792,2]
[372792767,1752765039746,-1290.34,0.00016792,2]
[372792769,1752765039756,-460.0,0.00016792,2]
[372792771,1752765039766,-460.0,0.00016792,2]
[372792773,1752765039776,-460.0,0.00016792,2]
[372792775,1752765039785,-460.0,0.00016792,2]
[372792777,1752765039795,-460.0,0.00016792,2]
[372792779,1752765039805,-1366.78,0.00016792,2]
[372792781,1752765039814,-460.0,0.00016792,2]
[372792783,1752765039823,-460.0,0.00016792,2]
[372792785,1752765039833,-460.0,0.00016792,2]
[372792787,1752765039842,-160.86923366,0.00016792,2]
[372792789,1752765039851,-326.18453745,0.00016792,2]
[372792791,1752765039861,-470.33748492,0.00016792,2]
[372792793,1752765039870,-460.0,0.00016792,2]
[372792795,1752765039881,-460.0,0.00016792,2]
[372792797,1752765039891,-460.0,0.00016792,2]
[372792799,1752765039900,-460.0,0.00016792,2]
[372792801,1752765039910,-460.0,0.00016792,2]
[372792803,1752765039919,-460.0,0.00016792,2]
[372792805,1752765039929,-1222.62,0.00016792,2]
[372792807,1752765039938,-460.0,0.00016792,2]
[372792810,1752765039951,-460.0,0.00016792,2]
[372792812,1752765039962,-460.0,0.00016792,2]
[372792814,1752765039975,-460.0,0.00016792,2]
[372792815,1752765039985,-460.0,0.00016792,2]
[372792817,1752765039995,-664.98,0.00016792,2]
[372792819,1752765040005,-460.0,0.00016792,2]
[372792821,1752765040015,-460.0,0.00016792,2]
[372792824,1752765040024,-395.5141809,0.00016792,2]
[372792826,1752765040034,-500.0,0.00016792,2]
[372792828,1752765040044,-460.67381935,0.00016793,2]
[372792830,1752765040053,-464.88502126,0.00016793,2]
[372792831,1752765040063,-381.39566368,0.00016793,2]